fUST/lending_fUST_20250819
["ID","MTS","AMOUNT","RATE_DAILY","PERIOD"]
[380103364,1755544258997,-151.0,0.000249,7]
[380103365,1755544259007,-456.908336,0.000249,7]
[380103366,1755544259016,-151.000001,0.000249,7]
[380103367,1755544259026,-456.908336,0.000249,7]
[380103368,1755544259036,-375.82681177,0.000249,7]
[380103369,1755544259045,-1339.032758,0.000249,7]
[380103370,1755544259054,-1339.032758,0.000249,7]
[380103371,1755544259064,-151.0,0.000249,7]
[380103372,1755544259073,-323.404346,0.000249,7]
[380103373,1755544259083,-323.404346,0.000249,7]
[380103374,1755544259092,-297.665573,0.000249,7]
[380103375,1755544259102,-297.665573,0.000249,7]
[380103376,1755544259111,-151.0,0.000249,7]
[380103377,1755544259120,-158.539587,0.000249,7]
[380103378,1755544259130,-158.539587,0.000249,7]
[380103379,1755544259139,-151.0,0.000249,7]
[380103380,1755544259148,-417.15472785,0.000249,7]
[380103381,1755544259157,-1954.57018642,0.000249,2]
[380103382,1755544259166,-151.0,0.000249,7]
[380103383,1755544259175,-232.18122251,0.000249,7]
[380103384,1755544259184,-278.29,0.00024905,7]
[380103385,1755544259195,-187.0,0.00024925,2]
[380103386,1755544259203,-203.89,0.00024926,7]
[380103387,1755544259213,-480.0,0.00024931,2]
[380103388,1755544259222,-182.83327782,0.00024931,2]
[380103389,1755544259300,-1688.69672218,0.00024931,2]
[380103390,1755544259379,-7370.49,0.00024931,2]
[380103391,1755544259399,-1673.6,0.00024931,2]
[380103392,1755544259411,-453.3101472,0.00024931,2]
[380103393,1755544259420,-821.89,0.00024931,2]
[380103394,1755544259431,-524.25,0.00024931,2]
[380103395,1755544259440,-860.1,0.00024931,2]
[380103396,1755544259449,-494.64,0.00024931,2]
[380103397,1755544259459,-519.68,0.00024931,2]
[380103398,1755544259470,-1178.6,0.00024931,2]
[380103399,1755544259479,-726.07,0.00024931,2]
[380103400,1755544259488,-1749.58,0.00024931,2]
[380103401,1755544259498,-644.39,0.00024931,2]
[380103402,1755544259507,-1299.74,0.00024931,2]
[380103403,1755544259516,-816.24,0.00024931,2]
[380103404,1755544259526,-684.61,0.00024931,2]
[380103405,1755544259535,-808.62,0.00024931,2]
[380103406,1755544259545,-480.0,0.00024931,2]
[380103407,1755544259554,-599.15,0.00024931,2]
[380103408,1755544259564,-500.0,0.00024932,2]
[380103409,1755544259574,-151.0,0.00024932,2]
[380103410,1755544259585,-151.0,0.00024932,2]
[380103411,1755544259594,-151.0,0.00024932,2]
[380103412,1755544259604,-151.0,0.00024932,2]
[380103413,1755544259613,-500.0,0.00024932,2]
[380103414,1755544259623,-500.0,0.00024932,2]
[380103415,1755544259632,-199.29105189,0.00024932,2]
[380103416,1755544259642,-151.0,0.00024932,2]
[380103417,1755544259651,-151.0,0.00024932,2]
[380103418,1755544259660,-151.0,0.00024932,2]
[380103419,1755544259669,-151.0,0.00024932,2]
[380103420,1755544259678,-500.0,0.00024932,2]
[380103421,1755544259687,-500.0,0.00024932,2]
[380103422,1755544259697,-187.0,0.00024957,2]
[380103423,1755544259706,-1400.0,0.00024961,2]
[380103424,1755544259716,-150.0,0.00024973,2]
[380103425,1755544259725,-165.650456,0.00025,3]
[380103426,1755544259734,-5970.52075459,0.00025,7]
[380103427,1755544259743,-99420.90065184,0.00025,10]
[380103428,1755544259793,-324.65567513,0.00025,10]
[380103429,1755544259804,-322.34432487,0.00025,10]
[380103430,1755544306133,1056.970831,0.00027397,120]
[380103431,1755544629780,158.250962,0.00013699,2]
[380103433,1755544749039,1876.0185694,0.0002876,120]
[380103435,1755545256148,2099.999998,0.00028,120]
[380103437,1755545303439,152.83555978,0.0002705,120]
[380103438,1755545307034,150.67839574,0.0002705,60]
[380103439,1755545315042,417.2826923,0.00025,120]
[380103440,1755545316404,183.56840001,0.00028,120]
[380103441,1755545319703,150.9999993,0.0002,120]
[380103442,1755545322916,1022.06119462,0.0002705,120]
[380103443,1755545323818,1524.74151076,0.0002705,120]
[380103444,1755545323880,163.6858225,0.0002739,120]
[380103445,1755545324284,170.58513808,0.0002705,120]
[380103446,1755545324909,1497.03014105,0.00028767,120]
[380103447,1755545325925,1153.3454656,0.0002705,60]
[380103461,1755545432316,-507.48997828,0.00019078,2]
[380103462,1755545432325,-135.68027709,0.00019078,2]
[380103463,1755545432373,-213.25530175,0.00019078,2]
[380103464,1755545432382,-300.0,0.00019163,2]
[380103465,1755545432392,-218.57444288,0.00019164,2]
[380103620,1755545438195,-899.8865546,0.00019164,2]
[380103621,1755545438515,-15996.90376583,0.00019164,2]
[380103622,1755545438525,-500.0,0.00019173,2]
[380103623,1755545438535,-500.0,0.00019173,2]
[380103624,1755545438545,-500.0,0.00019173,2]
[380103625,1755545438554,-500.0,0.00019177,2]
[380103626,1755545438564,-497.53926,0.00019177,2]
[380103627,1755545438574,-500.0,0.00019177,2]
[380103628,1755545438583,-480.0,0.00019178,2]
[380103629,1755545438593,-480.0,0.00019178,2]
[380103630,1755545438602,-480.0,0.00019178,2]
[380103631,1755545438611,-272.55333489,0.00019178,2]
[380103632,1755545438620,-460.0,0.00019178,2]
[380103633,1755545438630,-482.19471536,0.00019178,2]
[380103634,1755545438639,-482.53755632,0.00019178,2]
[380103635,1755545438649,-480.0,0.00019178,2]
[380103636,1755545438659,-480.0,0.00019178,2]
[380103637,1755545438668,-480.0,0.00019178,2]
[380103638,1755545438678,-480.0,0.00019178,2]
[380103639,1755545438687,-480.0,0.00019178,2]
[380103640,1755545438697,-480.0,0.00019178,2]
[380103641,1755545438706,-480.0,0.00019178,2]
[380103642,1755545438715,-480.0,0.00019178,2]
[380103643,1755545438725,-480.0,0.00019178,2]
[380103644,1755545438734,-480.0,0.00019178,2]
[380103645,1755545438743,-480.0,0.00019178,2]
[380103646,1755545438753,-480.0,0.00019178,2]
[380103647,1755545438763,-460.0,0.00019178,2]
[380103648,1755545438773,-480.0,0.00019178,2]
[380103649,1755545438782,-480.0,0.00019178,2]
[380103650,1755545438792,-480.0,0.00019178,2]
[380103651,1755545438801,-481.23197256,0.00019178,2]
[380103652,1755545438810,-480.0,0.00019178,2]
[380103653,1755545438819,-480.0,0.00019178,2]
[380103654,1755545438829,-245.58535331,0.00019178,2]
[380103655,1755545438838,-480.0,0.00019178,2]
[380103656,1755545438848,-480.0,0.00019178,2]
[380103657,1755545438857,-462.16053369,0.00019178,2]
[380103658,1755545438866,-480.0,0.00019178,2]
[380103659,1755545438875,-565.46,0.00019178,2]
[380103660,1755545438884,-480.0,0.00019178,2]
[380103661,1755545438893,-480.0,0.00019178,2]
[380103662,1755545438903,-480.0,0.00019178,2]
[380103663,1755545438912,-259.56278345,0.00019178,2]
[380103664,1755545438921,-480.0,0.00019178,2]
[380103665,1755545438931,-480.0,0.00019178,2]
[380103666,1755545438940,-181.44314166,0.00019178,2]
[380103667,1755545438950,-480.0,0.00019178,2]
[380103668,1755545438959,-480.0,0.00019178,2]
[380103669,1755545438968,-480.0,0.00019178,2]
[380103670,1755545438977,-480.0,0.00019178,2]
[380103671,1755545438987,-480.0,0.00019178,2]
[380103672,1755545438995,-460.83407976,0.00019178,2]
[380103673,1755545439005,-480.0,0.00019178,2]
[380103674,1755545439015,-480.0,0.00019178,2]
[380103675,1755545439024,-480.0,0.00019178,2]
[380103676,1755545439033,-480.0,0.00019178,2]
[380103677,1755545439043,-480.0,0.00019178,2]
[380103678,1755545439052,-500.0,0.00019178,2]
[380103679,1755545439061,-500.0,0.00019178,2]
[380103680,1755545439070,-464.06193495,0.00019178,2]
[380103681,1755545439082,-612.5957836,0.00019178,2]
[380103682,1755545439091,-465.32756027,0.00019178,2]
[380103683,1755545439100,-460.96887652,0.00019178,2]
[380103684,1755545439110,-463.38194712,0.00019178,2]
[380103685,1755545439119,-480.0,0.00019178,2]
[380103686,1755545439130,-460.0,0.00019178,2]
[380103687,1755545439140,-461.8276367,0.00019178,2]
[380103688,1755545439151,-480.0,0.00019178,2]
[380103689,1755545439160,-460.0,0.00019178,2]
[380103690,1755545439170,-460.0,0.00019178,2]
[380103691,1755545439182,-480.0,0.00019178,2]
[380103692,1755545439191,-480.0,0.00019178,2]
[380103693,1755545439201,-158.13,0.00019178,2]
[380103694,1755545439211,-480.0,0.00019178,2]
[380103695,1755545439221,-460.0,0.00019178,2]
[380103696,1755545439231,-460.0,0.00019178,2]
[380103697,1755545439241,-461.43263622,0.00019178,2]
[380103698,1755545439250,-460.0,0.00019178,2]
[380103699,1755545439260,-460.0,0.00019178,2]
[380103700,1755545439269,-480.0,0.00019178,2]
[380103701,1755545439280,-462.6116394,0.00019178,2]
[380103702,1755545439290,-460.0,0.00019178,2]
[380103703,1755545439299,-460.0,0.00019178,2]
[380103704,1755545439308,-460.0,0.00019178,2]
[380103705,1755545439317,-460.0,0.00019178,2]
[380103706,1755545439451,-460.0,0.00019178,2]
[380103707,1755545439460,-364.74665423,0.00019178,2]
[380103708,1755545439469,-460.0,0.00019178,2]
[380103709,1755545439479,-697.28,0.00019178,2]
[380103710,1755545439489,-480.0,0.00019178,2]
[380103711,1755545439499,-460.0,0.00019178,2]
[380103712,1755545439508,-460.0,0.00019178,2]
[380103713,1755545439517,-480.0,0.00019178,2]
[380103714,1755545439526,-480.0,0.00019178,2]
[380103715,1755545439535,-480.0,0.00019178,2]
[380103716,1755545439545,-521.68937955,0.00019178,2]
[380103717,1755545439554,-746.11,0.00019178,2]
[380103718,1755545439563,-480.0,0.00019178,2]
[380103719,1755545439572,-460.60923691,0.00019178,2]
[380103720,1755545439582,-495.4,0.00019178,2]
[380103721,1755545439591,-460.89228693,0.00019178,2]
[380103722,1755545439601,-463.37426668,0.00019178,2]
[380103723,1755545439611,-460.0,0.00019178,2]
[380103724,1755545439620,-480.0,0.00019178,2]
[380103725,1755545439629,-460.0,0.00019178,2]
[380103726,1755545439639,-460.0,0.00019178,2]
[380103727,1755545439648,-575.72240726,0.00019178,2]
[380103728,1755545439657,-525.46578648,0.00019178,2]
[380103729,1755545439667,-480.0,0.00019178,2]
[380103730,1755545439677,-480.0,0.00019178,2]
[380103731,1755545439686,-461.75102285,0.00019178,2]
[380103732,1755545439696,-480.0,0.00019178,2]
[380103733,1755545439705,-463.32879581,0.00019178,2]
[380103734,1755545439715,-465.1367722,0.00019178,2]
[380103735,1755545439724,-460.0,0.00019178,2]
[380103736,1755545439734,-460.0,0.00019178,2]
[380103737,1755545439744,-460.81595741,0.00019178,2]
[380103738,1755545439754,-480.0,0.00019178,2]
[380103739,1755545439763,-460.0,0.00019178,2]
[380103740,1755545439773,-480.0,0.00019178,2]
[380103741,1755545439783,-480.0,0.00019178,2]
[380103742,1755545439792,-480.0,0.00019178,2]
[380103744,1755545439802,-460.0,0.00019178,2]
[380103746,1755545439811,-480.0,0.00019178,2]
[380103748,1755545439821,-622.66801164,0.00019178,2]
[380103750,1755545439830,-480.0,0.00019178,2]
[380103752,1755545439840,-180.88608371,0.00019178,2]
[380103754,1755545439850,-178.47330037,0.00019178,2]
[380103757,1755545439859,-460.73808277,0.00019178,2]
[380103759,1755545439869,-460.0,0.00019178,2]
[380103761,1755545439880,-480.0,0.00019178,2]
[380103763,1755545439891,-460.0,0.00019178,2]
[380103765,1755545439901,-873.41,0.00019178,2]
[380103767,1755545439911,-460.0,0.00019178,2]
[380103769,1755545439920,-480.0,0.00019178,2]
[380103771,1755545439930,-460.0,0.00019178,2]
[380103773,1755545439940,-460.0,0.00019178,2]
[380103775,1755545439949,-480.0,0.00019178,2]
[380103777,1755545439958,-480.0,0.00019178,2]
[380103779,1755545439968,-460.0,0.00019178,2]
[380103781,1755545439978,-340.0,0.00019178,2]
[380103783,1755545439987,-480.0,0.00019178,2]
[380103785,1755545439997,-480.0,0.00019178,2]
[380103787,1755545440007,-480.0,0.00019178,2]
[380103789,1755545440016,-460.0,0.00019178,2]
[380103791,1755545440025,-480.0,0.00019178,2]
[380103793,1755545440035,-461.00623345,0.00019178,2]
[380103795,1755545440044,-460.0,0.00019178,2]
[380103797,1755545440053,-460.0,0.00019178,2]
[380103799,1755545440062,-480.0,0.00019178,2]
[380103801,1755545440071,-849.76,0.00019178,2]
[380103803,1755545440080,-480.0,0.00019178,2]
[380103805,1755545440089,-461.95569121,0.00019178,2]
[380103807,1755545440099,-462.26441159,0.00019178,2]
[380103809,1755545440108,-480.0,0.00019178,2]
[380103811,1755545440117,-460.0,0.00019178,2]
[380103813,1755545440127,-462.91874358,0.00019178,2]
[380103815,1755545440138,-480.0,0.00019178,2]
[380103817,1755545440147,-480.0,0.00019178,2]
[380103819,1755545440156,-480.0,0.00019178,2]
[380103821,1755545440165,-480.0,0.00019178,2]
[380103823,1755545440178,-460.20192978,0.00019178,2]
[380103825,1755545440189,-464.74788078,0.00019178,2]
[380103827,1755545440199,-460.0,0.00019178,2]
[380103829,1755545440211,-462.07847331,0.00019178,2]
[380103831,1755545440222,-583.67,0.00019178,2]
[380103833,1755545440233,-480.0,0.00019178,2]
[380103835,1755545440242,-480.0,0.00019178,2]
[380103837,1755545440253,-480.0,0.00019178,2]
[380103839,1755545440262,-460.0,0.00019178,2]
[380103841,1755545440272,-464.96018152,0.00019178,2]
[380103844,1755545440283,-460.0,0.00019178,2]
[380103846,1755545440292,-480.0,0.00019178,2]
[380103848,1755545440301,-480.0,0.00019178,2]
[380103850,1755545440311,-460.0,0.00019178,2]
[380103852,1755545440321,-480.0,0.00019178,2]
[380103854,1755545440330,-609.72,0.00019178,2]
[380103856,1755545440339,-1188.19,0.00019178,2]
[380103858,1755545440348,-480.0,0.00019178,2]
[380103860,1755545440358,-480.0,0.00019178,2]
[380103862,1755545440367,-480.0,0.00019178,2]
[380103864,1755545440377,-480.0,0.00019178,2]
[380103866,1755545440386,-464.6167897,0.00019178,2]
[380103867,1755545440395,-480.0,0.00019178,2]
[380103869,1755545440404,-462.58521817,0.00019178,2]
[380103871,1755545440413,-480.0,0.00019178,2]
[380103873,1755545440423,-461.78500559,0.00019178,2]
[380103875,1755545440431,-461.78878274,0.00019178,2]
[380103877,1755545440441,-480.0,0.00019178,2]
[380103879,1755545440450,-480.0,0.00019178,2]
[380103881,1755545440459,-3096.08,0.00019178,2]
[380103883,1755545440468,-480.0,0.00019178,2]
[380103885,1755545440477,-461.10237328,0.00019178,2]
[380103887,1755545440487,-480.0,0.00019178,2]
[380103889,1755545440496,-460.0,0.00019178,2]
[380103891,1755545440505,-480.0,0.00019178,2]
[380103893,1755545440514,-462.20809951,0.00019178,2]
[380103895,1755545440523,-480.0,0.00019178,2]
[380103897,1755545440532,-470.12470226,0.00019178,2]
[380103899,1755545440541,-480.0,0.00019178,2]
[380103901,1755545440550,-460.0,0.00019178,2]
[380103903,1755545440559,-480.0,0.00019178,2]
[380103905,1755545440568,-465.85646917,0.00019178,2]
[380103907,1755545440577,-480.0,0.00019178,2]
[380103909,1755545440587,-480.0,0.00019178,2]
[380103911,1755545440597,-460.0,0.00019178,2]
[380103913,1755545440608,-460.0,0.00019178,2]
[380103915,1755545440618,-480.0,0.00019178,2]
[380103917,1755545440628,-480.0,0.00019178,2]
[380103919,1755545440638,-480.0,0.00019178,2]
[380103921,1755545440647,-525.3049356,0.00019178,2]
[380103923,1755545440657,-480.0,0.00019178,2]
[380103925,1755545440666,-480.0,0.00019178,2]
[380103927,1755545440675,-480.0,0.00019178,2]
[380103929,1755545440684,-466.75195852,0.00019178,2]
[380103931,1755545440693,-460.0,0.00019178,2]
[380103933,1755545440702,-480.0,0.00019178,2]
[380103935,1755545440711,-480.0,0.00019178,2]
[380103937,1755545440720,-480.0,0.00019178,2]
[380103939,1755545440730,-480.0,0.00019178,2]
[380103941,1755545440740,-480.0,0.00019178,2]
[380103943,1755545440749,-461.29689264,0.00019178,2]
[380103945,1755545440758,-480.0,0.00019178,2]
[380103947,1755545440767,-460.0,0.00019178,2]
[380103949,1755545440776,-480.0,0.00019178,2]
[380103951,1755545440785,-460.0,0.00019178,2]
[380103953,1755545440794,-480.0,0.00019178,2]
[380103955,1755545440804,-480.0,0.00019178,2]
[380103957,1755545440813,-480.0,0.00019178,2]
[380103959,1755545440823,-480.0,0.00019178,2]
[380103961,1755545440832,-460.0,0.00019178,2]
[380103963,1755545440841,-480.0,0.00019178,2]
[380103965,1755545440851,-469.45198186,0.00019178,2]
[380103967,1755545440860,-480.0,0.00019178,2]
[380103969,1755545440869,-480.0,0.00019178,2]
[380103971,1755545440878,-480.0,0.00019178,2]
[380103973,1755545440887,-465.6092932,0.00019178,2]
[380103975,1755545440896,-480.0,0.00019178,2]
[380103977,1755545440905,-480.0,0.00019178,2]
[380103979,1755545440915,-460.0,0.00019178,2]
[380103981,1755545440923,-460.0,0.00019178,2]
[380103983,1755545440933,-480.0,0.00019178,2]
[380103985,1755545440943,-460.0,0.00019178,2]
[380103987,1755545440951,-480.0,0.00019178,2]
[380103989,1755545440961,-334.32241536,0.00019178,2]
[380103991,1755545440970,-480.0,0.00019178,2]
[380103993,1755545440979,-480.0,0.00019178,2]
[380103995,1755545440988,-460.0,0.00019178,2]
[380103997,1755545440998,-480.0,0.00019178,2]
[380103999,1755545441008,-480.0,0.00019178,2]
[380104001,1755545441017,-480.0,0.00019178,2]
[380104003,1755545441027,-460.0,0.00019178,2]
[380104005,1755545441036,-480.0,0.00019178,2]
[380104007,1755545441045,-480.0,0.00019178,2]
[380104009,1755545441054,-460.0,0.00019178,2]
[380104011,1755545441064,-480.0,0.00019178,2]
[380104013,1755545441072,-480.0,0.00019178,2]
[380104015,1755545441082,-480.0,0.00019178,2]
[380104017,1755545441091,-480.0,0.00019178,2]
[380104019,1755545441100,-480.0,0.00019178,2]
[380104021,1755545441109,-480.0,0.00019178,2]
[380104023,1755545441119,-460.0,0.00019178,2]
[380104025,1755545441130,-480.0,0.00019178,2]
[380104027,1755545441140,-480.0,0.00019178,2]
[380104029,1755545441149,-460.0,0.00019178,2]
[380104031,1755545441159,-537.7,0.00019178,2]
[380104033,1755545441168,-480.0,0.00019178,2]
[380104035,1755545441178,-1727.0,0.00019178,2]
[380104037,1755545441188,-1727.0,0.00019178,2]
[380104039,1755545441197,-480.0,0.00019178,2]
[380104041,1755545441206,-480.0,0.00019178,2]
[380104043,1755545441215,-1727.0,0.00019178,2]
[380104045,1755545441224,-1727.0,0.00019178,2]
[380104047,1755545441232,-460.0,0.00019178,2]
[380104049,1755545441241,-480.0,0.00019178,2]
[380104051,1755545441250,-480.0,0.00019178,2]
[380104053,1755545441259,-1727.0,0.00019178,2]
[380104055,1755545441268,-1727.0,0.00019178,2]
[380104057,1755545441277,-1727.0,0.00019178,2]
[380104059,1755545441285,-480.0,0.00019178,2]
[380104061,1755545441295,-1727.0,0.00019178,2]
[380104063,1755545441304,-480.0,0.00019178,2]
[380104065,1755545441313,-480.0,0.00019178,2]
[380104067,1755545441322,-1727.0,0.00019178,2]
[380104069,1755545441331,-460.0,0.00019178,2]
[380104071,1755545441340,-464.6133838,0.00019178,2]
[380104073,1755545441349,-480.0,0.00019178,2]
[380104075,1755545441358,-1727.0,0.00019178,2]
[380104077,1755545441367,-480.0,0.00019178,2]
[380104079,1755545441376,-1727.0,0.00019178,2]
[380104081,1755545441385,-728.99,0.00019178,2]
[380104083,1755545441394,-1727.0,0.00019178,2]
[380104085,1755545441402,-1727.0,0.00019178,2]
[380104087,1755545441411,-460.0,0.00019178,2]
[380104089,1755545441420,-1727.0,0.00019178,2]
[380104091,1755545441429,-1727.0,0.00019178,2]
[380104093,1755545441438,-480.0,0.00019178,2]
[380104095,1755545441447,-480.0,0.00019178,2]
[380104097,1755545441456,-464.97454503,0.00019178,2]
[380104099,1755545441465,-481.13418584,0.00019178,2]
[380104101,1755545441474,-461.74364525,0.00019178,2]
[380104103,1755545441483,-480.0,0.00019178,2]
[380104105,1755545441492,-480.0,0.00019178,2]
[380104106,1755545441501,-545.00231902,0.00019178,2]
[380104108,1755545441510,-561.56,0.00019178,2]
[380104110,1755545441519,-480.0,0.00019178,2]
[380104112,1755545441528,-479.35328352,0.00019178,2]
[380104114,1755545441537,-499.54,0.00019178,2]
[380104116,1755545441546,-461.14689207,0.00019178,2]
[380104118,1755545441555,-480.0,0.00019178,2]
[380104120,1755545441565,-480.0,0.00019178,2]
[380104122,1755545441574,-9594.8198292,0.00019178,2]
[380104124,1755545441583,-500.0,0.00019178,2]
[380104126,1755545441592,-5000.0,0.00019178,2]
[380104128,1755545441601,-1770.56066734,0.00019178,2]
[380104130,1755545441610,-666.0,0.00019178,2]
[380104132,1755545441619,-1727.0,0.00019329,2]
[380104134,1755545441628,-1727.0,0.00019329,2]
[380104136,1755545441637,-1727.0,0.00019329,2]
[380104138,1755545441648,-1727.0,0.00019329,2]
[380104140,1755545441657,-1727.0,0.00019329,2]
[380104142,1755545441666,-1727.0,0.00019329,2]
[380104144,1755545441675,-1727.0,0.00019329,2]
[380104146,1755545441684,-1727.0,0.00019329,2]
[380104148,1755545441693,-1727.14190112,0.00019329,2]
[380104150,1755545441702,-348.93557884,0.0001942,2]
[380104153,1755545441712,-480.0,0.00019451,2]
[380104155,1755545441722,-480.0,0.00019451,2]
[380104157,1755545441731,-480.0,0.00019451,2]
[380104159,1755545441740,-480.0,0.00019451,2]
[380104161,1755545441750,-480.0,0.00019452,2]
[380104163,1755545441758,-480.0,0.00019452,2]
[380104164,1755545441767,-480.0,0.00019452,2]
[380104166,1755545441776,-480.0,0.00019452,2]
[380104168,1755545441785,-558.94,0.00019452,2]
[380104170,1755545441795,-480.0,0.00019452,2]
[380104172,1755545441805,-480.0,0.00019452,2]
[380104175,1755545441814,-231.06741361,0.00019452,2]
[380104177,1755545441824,-480.0,0.00019452,2]
[380104179,1755545441833,-480.0,0.00019452,2]
[380104181,1755545441842,-480.0,0.00019452,2]
[380104183,1755545441851,-265.72,0.00019452,2]
[380104185,1755545441860,-480.0,0.00019452,2]
[380104187,1755545441869,-480.0,0.00019452,2]
[380104189,1755545441878,-480.0,0.00019452,2]
[380104190,1755545441888,-480.0,0.00019452,2]
[380104193,1755545441897,-480.0,0.00019452,2]
[380104194,1755545441907,-480.0,0.00019452,2]
[380104196,1755545441916,-480.0,0.00019452,2]
[380104198,1755545441925,-513.91,0.00019452,2]
[380104200,1755545441934,-480.0,0.00019452,2]
[380104202,1755545441944,-480.0,0.00019452,2]
[380104204,1755545441953,-480.0,0.00019452,2]
[380104206,1755545441962,-480.0,0.00019452,2]
[380104208,1755545441971,-480.0,0.00019452,2]
[380104210,1755545441980,-697.28,0.00019452,2]
[380104212,1755545441990,-480.0,0.00019452,2]
[380104214,1755545441999,-440.0,0.00019452,2]
[380104216,1755545442008,-480.0,0.00019452,2]
[380104218,1755545442018,-460.0,0.00019452,2]
[380104220,1755545442027,-746.11,0.00019452,2]
[380104222,1755545442036,-480.0,0.00019452,2]
[380104224,1755545442046,-462.77364927,0.00019452,2]
[380104227,1755545442056,-151.26181018,0.00019452,2]
[380104228,1755545442065,-480.0,0.00019452,2]
[380104230,1755545442075,-480.0,0.00019452,2]
[380104232,1755545442086,-604.55744259,0.00019452,2]
[380104234,1755545442097,-480.0,0.00019452,2]
[380104237,1755545442108,-426.2167009,0.00019452,2]
[380104248,1755545442213,-480.0,0.00019452,2]
[380104250,1755545442223,-873.41,0.00019452,2]
[380104252,1755545442232,-480.0,0.00019452,2]
[380104254,1755545442241,-480.0,0.00019452,2]
[380104256,1755545442251,-460.0,0.00019452,2]
[380104258,1755545442260,-480.0,0.00019452,2]
[380104260,1755545442269,-480.0,0.00019452,2]
[380104262,1755545442278,-480.0,0.00019452,2]
[380104264,1755545442288,-480.0,0.00019452,2]
[380104266,1755545442297,-849.76,0.00019452,2]
[380104268,1755545442306,-480.0,0.00019452,2]
[380104270,1755545442315,-480.0,0.00019452,2]
[380104272,1755545442325,-480.0,0.00019452,2]
[380104274,1755545442334,-427.32378351,0.00019452,2]
[380104276,1755545442343,-447.36236777,0.00019452,2]
[380104278,1755545442353,-583.67,0.00019452,2]
[380104280,1755545442363,-480.0,0.00019452,2]
[380104282,1755545442373,-480.0,0.00019452,2]
[380104284,1755545442382,-285.94768912,0.00019452,2]
[380104286,1755545442391,-320.0,0.00019452,2]
[380104288,1755545442400,-448.89371955,0.00019452,2]
[380104290,1755545442411,-1188.19,0.00019452,2]
[380104292,1755545442419,-480.0,0.00019452,2]
[380104294,1755545442428,-480.0,0.00019452,2]
[380104296,1755545442437,-440.0,0.00019452,2]
[380104298,1755545442447,-480.0,0.00019452,2]
[380104300,1755545442456,-480.0,0.00019452,2]
[380104302,1755545442466,-480.0,0.00019452,2]
[380104304,1755545442475,-553.1,0.00019452,2]
[380104306,1755545442486,-3096.08,0.00019452,2]
[380104308,1755545442495,-480.0,0.00019452,2]
[380104310,1755545442505,-480.0,0.00019452,2]
[380104313,1755545442515,-480.0,0.00019452,2]
[380104315,1755545442525,-480.0,0.00019452,2]
[380104317,1755545442534,-480.0,0.00019452,2]
[380104319,1755545442543,-506.84,0.00019452,2]
[380104321,1755545442552,-480.0,0.00019452,2]
[380104323,1755545442561,-480.0,0.00019452,2]
[380104325,1755545442571,-480.0,0.00019452,2]
[380104327,1755545442579,-480.0,0.00019452,2]
[380104329,1755545442589,-480.0,0.00019452,2]
[380104331,1755545442598,-480.0,0.00019452,2]
[380104333,1755545442608,-480.0,0.00019452,2]
[380104335,1755545442616,-460.0,0.00019452,2]